Cogmind - Beta 14 @@@ ROGUE MODE // 2024.08.11 @ 23:38:24 Player: Olafz Result: Self-destructed Performance ------------- Evolutions (1) 500 Regions Visited (3) 600 Robots Destroyed (0) 0 Value Destroyed (0) 0 Prototype IDs (0) 0 Alien Tech Used (0) 0 Bonus (200) 200 TOTAL SCORE: 1300 Bonus ------- Pacifist 200 Cogmind --------- Core Integrity 258/400 Matter 199/300 Energy 100/100 System Corruption 0% Temperature Cool (0) Movement Core (50) Location -9/Mines Parts ------- > --- POWER (1) -------- (None) > --- PROPULSION (2) --- (None) > --- UTILITY (4) ------ (None) > --- WEAPON (2) ------- (None) > --- INVENTORY (5) ---- (None) Peak State ------------ None Favorites ----------- Power None Propulsion None Utility None Weapon None Build | -11 -10 -9 -9 ------- Run | Yrd Mat Mat Min Slots Evolved 2 | . . 2 . Power . | . . . . Propulsion . | . . . . Utility 2 | . . 2 . Weapon . | . . . . Parts Attached . | . . . . Power . | . . . . Engine . | . . . . Core . | . . . . Reactor . | . . . . Propulsion . | . . . . Treads . | . . . . Leg . | . . . . Wheel . | . . . . Hover . | . . . . Flight . | . . . . Utility . | . . . . Device . | . . . . Storage . | . . . . Processor . | . . . . Hackware . | . . . . Protection . | . . . . Artifact . | . . . . Weapon . | . . . . Energy Gun . | . . . . Energy Cannon . | . . . . Ballistic Gun . | . . . . Ballistic Cannon . | . . . . Launcher . | . . . . Special Weapon . | . . . . Impact Weapon . | . . . . Slashing Weapon . | . . . . Piercing Weapon . | . . . . Special Melee Weapon . | . . . . Unidentified Prototypes . | . . . . Parts Lost . | . . . . Power . | . . . . Propulsion . | . . . . Utility . | . . . . Weapon . | . . . . Highest Loss Streak . | . . . . To Critical Strikes . | . . . . Average Slot Usage (%) . | . . . . Peak Build Rating . | . . . . Average Rating . | . . . . On Entrance . | . . . . Naked Turns 87 | . 39 48 . Heaviest Build . | . . . . Greatest Support 3 | 3 3 3 . Greatest Overweight (x) . | . . . . Average Overweight (x) . | . . . . Largest Inventory Capacity 5 | 5 5 5 . Average Capacity 5 | 5 5 5 . Most Carried . | . . . . Average Carried . | . . . . Final Capacity 5 | 5 5 5 5 Final Carried . | . . . . Class Distribution -------------------- 100% | Mutant Dominant Class ---------------- Mutant | -10/Materials Mutant | -9/Materials Mutant | -9/Mines Resources | -11 -10 -9 -9 ----------- Run | Yrd Mat Mat Min Matter Collected 90 | 90 . . . Remotely . | . . . . Salvage Created . | . . . . Parts . | . . . . Haulers Intercepted . | . . . . Recyclers Shooed . | . . . . Parts Field Recycled . | . . . . Retrieved Matter . | . . . . Parts Self-Destructed . | . . . . Prevented . | . . . . Kills | -11 -10 -9 -9 ------- Run | Yrd Mat Mat Min Combat Hostiles Destroyed . | . . . . Classes Destroyed . | . . . . Best Kill Streak . | . . . . Combat Bots Only . | . . . . Max Kills in Single Turn . | . . . . Gunslinging . | . . . . Exploded . | . . . . Melee . | . . . . Uniques/NPCs Destroyed . | . . . . Combat | -11 -10 -9 -9 -------- Run | Yrd Mat Mat Min Hostile Shots Fired 41 | . 20 21 . Missed 16 | . 5 11 . Damage Taken 262 | . 120 142 . Core 262 | . 120 142 . Absorbed by Shields . | . . . . Core Remaining (%) 76 | 100 52 . . Volleys Fired . | . . . . Largest . | . . . . Hottest . | . . . . Shots Fired . | . . . . Gun . | . . . . Cannon . | . . . . Launcher . | . . . . Special . | . . . . Kinetic . | . . . . Thermal . | . . . . Explosive . | . . . . Electromagnetic . | . . . . Robot Hit Streak . | . . . . Robot Miss Streak . | . . . . Penetration Max . | . . . . Secondary Targets . | . . . . Shots Hit Robots . | . . . . Core Hits . | . . . . Critical Kills . | . . . . Critical Parts Destroyed . | . . . . Critical Strikes . | . . . . Melee Attacks . | . . . . Impact . | . . . . Slashing . | . . . . Piercing . | . . . . Sneak Attacks . | . . . . Combat Hostiles . | . . . . Follow-up Attacks . | . . . . Damage Inflicted 6 | . 4 2 . Guns . | . . . . Cannons . | . . . . Explosions . | . . . . Melee . | . . . . Ramming 6 | . 4 2 . Kinetic . | . . . . Thermal . | . . . . Explosive . | . . . . Electromagnetic . | . . . . Impact . | . . . . Slashing . | . . . . Piercing . | . . . . Highest Corruption . | . . . . Average Corruption . | . . . . Corruption Purged . | . . . . Corruption Blocked . | . . . . Overload Shots . | . . . . Overflow Damage . | . . . . Projectiles . | . . . . Explosions . | . . . . Melee . | . . . . Knockbacks . | . . . . Impact . | . . . . Kinetic . | . . . . Secondary . | . . . . Self-Inflicted Damage 2 | . 1 1 . Shots . | . . . . Rammed 4 | . 3 1 . Targets Rammed 4 | . 3 1 . Kicked . | . . . . Crushed . | . . . . Highest Temperature . | . . . . Average Temperature . | . . . . Received Heat Transfer 51 | . 6 45 . Siege Activations . | . . . . Robots Corrupted . | . . . . Combat Hostiles . | . . . . Parts Fried . | . . . . Impact Corruptions . | . . . . Robots Melted . | . . . . Combat Hostiles . | . . . . Parts Melted . | . . . . Heat Transferred . | . . . . Parts Sabotaged . | . . . . Parts Stolen . | . . . . Parts Stripped . | . . . . Power Chain Reactions . | . . . . Alert | -11 -10 -9 -9 ------- Run | Yrd Mat Mat Min Peak Influence 75 | . . 75 . Initial 28 | . . . 28 Average 12 | . . 25 . Maximum Alert Level . | . . . . Low Security (%) 100 | 100 100 100 . Level 1 . | . . . . Level 2 . | . . . . Level 3 . | . . . . Level 4 . | . . . . Level 5 . | . . . . High Security . | . . . . Max Security . | . . . . Squads Dispatched 2 | . 1 1 . Investigation 1 | . 1 . . Extermination . | . . . . Reinforcement 1 | . . 1 . Assault . | . . . . Garrison . | . . . . Intercept . | . . . . Searches Triggered . | . . . . Construction Impeded . | . . . . Haulers Reinforced . | . . . . Active Scanning Responses . | . . . . Cargo Convoy Interrupts . | . . . . Stealth | -11 -10 -9 -9 --------- Run | Yrd Mat Mat Min Distress Signals 2 | . . 2 . Communications Jammed . | . . . . Distress Signals . | . . . . Times Spotted 17 | . 6 11 . Peak Tracking Total 9 | . 5 9 . Tactical Retreats 1 | . . 1 . Traps | -11 -10 -9 -9 ------- Run | Yrd Mat Mat Min Traps Triggered 1 | . 1 . . Indirectly . | . . . . Trap Hack Attempts . | . . . . Triggered . | . . . . Disarmed . | . . . . Reprogrammed . | . . . . Reused . | . . . . Traps Extracted . | . . . . Installed . | . . . . Triggered . | . . . . Machines | -11 -10 -9 -9 ---------- Run | Yrd Mat Mat Min Machines Disabled . | . . . . Max in Single Turn . | . . . . Machines Repaired . | . . . . Machines Dismantled . | . . . . Machines Sabotaged . | . . . . Overloaded Fab Kills . | . . . . Hacking | -11 -10 -9 -9 --------- Run | Yrd Mat Mat Min Machines Accessed . | . . . . Terminals . | . . . . Fabricators . | . . . . Repair Stations . | . . . . Recycling Units . | . . . . Scanalyzers . | . . . . Garrison Access . | . . . . Total Hacks . | . . . . Successful . | . . . . Failed . | . . . . Catastrophic . | . . . . Database Lockouts . | . . . . Manual . | . . . . Terminals . | . . . . Fabricators . | . . . . Repair Stations . | . . . . Recycling Units . | . . . . Scanalyzers . | . . . . Garrison Access . | . . . . Terminal Hacks . | . . . . Fabricator Hacks . | . . . . Repair Station Hacks . | . . . . Recycling Unit Hacks . | . . . . Scanalyzer . | . . . . Garrison Access Hacks . | . . . . Unauthorized Hacks . | . . . . Terminals . | . . . . Fabricators . | . . . . Repair Stations . | . . . . Recycling Units . | . . . . Scanalyzers . | . . . . Garrison Access . | . . . . Data Cores Recovered . | . . . . Used . | . . . . Hacking Detections . | . . . . Full Trace Events . | . . . . Feedback Events . | . . . . Feedback Blocked . | . . . . Robot Schematics Acquired . | . . . . Robots Built . | . . . . Authchips . | . . . . Time . | . . . . Total Robot Build Rating . | . . . . Part Schematics Acquired . | . . . . Parts Built . | . . . . Authchips . | . . . . Time . | . . . . Total Part Build Rating . | . . . . Parts Repaired . | . . . . Time . | . . . . Parts Recycled . | . . . . Recycled Matter . | . . . . Retrieved Matter . | . . . . Retrieved Components . | . . . . Parts Scanalyzed . | . . . . Part Schematics Acquired . | . . . . Parts Damaged . | . . . . Bothacking | -11 -10 -9 -9 ------------ Run | Yrd Mat Mat Min Used RIF Installer . | . . . . Robots Hacked . | . . . . Non-combat . | . . . . Combat . | . . . . Robot Hacks Applied . | . . . . Relay Couplers Released . | . . . . Fabnet Peak Effective % . | . . . . Robots Rewired . | . . . . Allies Hacked . | . . . . Hacks Repelled . | . . . . Allies | -11 -10 -9 -9 -------- Run | Yrd Mat Mat Min Total Allies . | . . . . Largest Group . | . . . . Highest-Rated Group . | . . . . Highest-Rated Ally . | . . . . Total Orders . | . . . . Ally Attacks . | . . . . Total Damage . | . . . . Kills . | . . . . Allies Corrupted . | . . . . Allies Melted . | . . . . Intel | -11 -10 -9 -9 ------- Run | Yrd Mat Mat Min Robot Analysis Total . | . . . . Derelict Logs Recovered . | . . . . Drone Launches . | . . . . Drone Recoveries . | . . . . Exploration | -11 -10 -9 -9 ------------- Run | Yrd Mat Mat Min Turns Passed 96 | 9 39 48 . Spaces Moved 186 | 18 73 95 . Core 186 | 18 73 95 . Treads . | . . . . Legs . | . . . . Wheels . | . . . . Hover . | . . . . Flight . | . . . . Fastest Speed 50 | 50 50 50 . Average Speed 50 | 50 50 50 . Slowest Speed 50 | 50 50 50 . Overloaded Moves . | . . . . Propulsion Burnouts . | . . . . Robots Hopped . | . . . . Cave-ins Triggered . | . . . . Exploration Rate (%) 9 | 3 19 11 3 Regions Visited 3 Branch Regions 1 Pre-discovered Areas . | . . . . Known Exits Taken . | . . . . Unknown Exits Taken 3 | 1 1 1 . Scrap Searched . | . . . . Spaces Dug . | . . . . Terrain Destroyed . | . . . . Melee . | . . . . Projectile . | . . . . AOE . | . . . . Terrain Rammed . | . . . . Walls Destroyed . | . . . . Machines Disabled . | . . . . Actions | -11 -10 -9 -9 --------- Run | Yrd Mat Mat Min Total 187 | 17 75 95 . Wait . | . . . . Move 185 | 17 73 95 . Hop . | . . . . Pick Up . | . . . . Fast Attach . | . . . . Attach . | . . . . Detach . | . . . . Swap . | . . . . Drop . | . . . . Fire . | . . . . Melee . | . . . . Ram 2 | . 2 . . Kick . | . . . . Crush . | . . . . Escape Stasis . | . . . . Rewire . | . . . . Trap . | . . . . Miscellaneous . | . . . . Route ------- -11/Scrapyard -10/Materials -9/Materials -9/Mines History --------- Turn | Location | Event 3 | -11/Scrapyard | Discovered new exit (range 15) 10 | -11/Scrapyard | Entered Materials 44 | -10/Materials | Discovered new exit (range 12) 49 | -10/Materials | Entered another Materials area 49 | -9/Materials | Evolved 2 slots: Utility x2 90 | -9/Materials | Discovered new exit (range 16) 97 | -9/Materials | Entered Mines 97 | -9/Mines | Self-destructed Last Messages --------------- K-01 Serf collects debris. EXIT=FOUND Triggered Alarm Trap. An alarm sounds. ALERT: Alarm triggered, dispatching investigation squad. Slammed into G-34 Mercenary. PARAMETERS=UTILITY+2 LOCATION=UNKNOWN GOAL=ESCAPE O-16 Technician: "IFF HANDSHAKE FAILED. SECURING TERMINAL." O-16 Technician sends out distress signal. T-07 Excavator is excavating. ALERT: Hostiles spotted, dispatching reinforcements to Terminal M004. T-07 Excavator is excavating. K-01 Serf collects debris. W-16 Scout sends out distress signal. EXIT=FOUND Slammed into Y-45 Defender. LOCATION=UNKNOWN GOAL=ESCAPE Map ----- +----------------------------------------------------+ | ???????????????????????????????????????????? | | ???????????????????????????????????????????? | | ???????????????????????????????????????????? | | ???????????????????????????????????????????? | | ???????????????????????????????????????????? | | ???????????????????????????????????????????? | | ???????????????????????????????????????????? | | ???????????????????????????????????????????? | | ???????????????????????????????????????????? | | ???????????????????????????????????????????? | | ???????????????????????????????????????????? | | ???????????????????????????????????????????? | | ???????????????????????????????????????????? | | ???????????????????????????????????????????? | | ????????????????????????????##?????????????? | | ???????????????????????????? ??????????????? | | ??????????????????????????? ??????????????? | | ???????????????????????????![??????????????? | | ???????????????????????????!#??????????????? | | ??????????????????????????? ???????????????? | | ??????????????????????????* ???????????????? | | ??????????????????????????!#???????????????? | | ?????????????????????????? #???????????????? | | ???????????????????????### #???????????????? | | ??????????????????????## #???????????????? | | ??????????????????????# @ #???????????????? | | ?????????????????????# #?????????????? | | ?????????????????????# ## #????????????? | | ?????????????????????## ??# ???????????? | | ?????????????????????? ???## #?????????? | | ????????????????????? ?????? #?????????? | | ???????????????????? ###???????? #?????????? | | ??????????????????? ???????????? ????????? | | ??????????????????# ?????????????? ???????? | | ?????????????????? ????????????????##??????? | | ????????????????? ?????????????????????????? | | ???????????????? ?????????????????????????? | | ???????????????? ??????????????????????????? | | ???????????????????????????????????????????? | | ???????????????????????????????????????????? | | ???????????????????????????????????????????? | | ???????????????????????????????????????????? | | ???????????????????????????????????????????? | | ???????????????????????????????????????????? | | ???????????????????????????????????????????? | | ???????????????????????????????????????????? | | ???????????????????????????????????????????? | | ???????????????????????????????????????????? | | ???????????????????????????????????????????? | | ???????????????????????????????????????????? | +----------------------------------------------------+ Best States ------------- Heat Dissipation 28 Energy Generation 5 Energy Capacity 100 Matter Stores 197 Matter Capacity 300 Sight Range 16 Terrain Scan Density 10 Evasion (%) 50 Item Schematics ----------------- None Robot Schematics ------------------ None Fabricated ------------ Nothing Alien Tech Used ----------------- None Achievements -------------- None Challenges ------------ None Game ------ Seed CryofiberThermalInterpreter Manual? 0 Play Time 00:01:21 Cumulative 195.2 hours Start 2024.08.11 @ 23:37:06 End 2024.08.11 @ 23:38:24 Sessions 1 Manual Loads 0 Difficulty Rogue Special Mode None Game No. 344 Rogue 342 Adventurer 2 Explorer 0 Win Type - Total 9 Types 8/0/0/1/0/0/0/0/0 Lore% 69 Gallery% 64 Achievement% 55 Wizard Run 0 Options --------- Layout 0 ASCII 0 Keyboard 1 Movement Numpad Keybinds 1 Fullscreen 2 Font 18/SmallcapsGlow Map View 76x50 Zoom Use 0% Tactical HUD 1 Map Filters NONE Filters NONE Steam 1 RUN: 007dcda2-c441-4cbe-b18c-e10871637eb2